bitfinex-derivatives/quotes_BTCF0:USTF0_20251110
["timestamp","ask_amount","ask_price","bid_price","bid_amount"]
[1762735392510,0.62664343,105970.0,105960.0,0.00014208]
[1762735392711,0.63264343,105970.0,105960.0,0.00014208]
[1762735393613,0.71510686,105970.0,105960.0,0.00014208]
[1762735394119,0.17938,105950.0,105940.0,0.68212743]
[1762735394318,0.95804343,105950.0,105940.0,0.67093803]
[1762735394905,0.9240502,105950.0,105940.0,0.76535283]
[1762735395614,0.9240502,105950.0,105940.0,0.67093803]
[1762735395816,0.9240502,105950.0,105940.0,0.76535283]
[1762735396119,0.9240502,105950.0,105940.0,0.69093803]
[1762735396419,0.9240502,105950.0,105940.0,0.78535283]
[1762735396614,0.84158677,105950.0,105940.0,0.78535283]
[1762735396814,0.9240502,105950.0,105940.0,0.77435283]
[1762735397019,0.9280502,105950.0,105940.0,0.77435283]
[1762735397220,0.9350502,105950.0,105940.0,0.76535283]
[1762735397808,0.8453602,105950.0,105940.0,0.76535283]
[1762735398121,0.4845602,105950.0,105940.0,0.76535283]
[1762735399017,0.3464,105950.0,105940.0,0.76535283]
[1762735400218,0.3364,105950.0,105940.0,0.76535283]
[1762735400624,0.41886343,105950.0,105940.0,0.76535283]
[1762735400818,0.3364,105950.0,105940.0,1.12615283]
[1762735401015,0.007,105950.0,105940.0,1.12615283]
[1762735401216,0.33494208,105960.0,105950.0,0.094406]
[1762735401410,0.33494208,105960.0,105950.0,0.61029403]
[1762735401618,0.33494208,105960.0,105950.0,0.97109403]
[1762735402016,0.00014208,105960.0,105950.0,0.97109403]
[1762735402424,0.06283208,105960.0,105950.0,0.87668803]
[1762735402619,0.00014208,105960.0,105950.0,0.97109393]
[1762735403024,0.33476,105970.0,105960.0,0.763137]
[1762735403321,0.44326343,105980.0,105970.0,0.6080781]
[1762735403520,0.77790343,105980.0,105970.0,0.61027613]
[1762735403729,0.90358343,105980.0,105970.0,0.61027613]
[1762735404025,0.54278343,105980.0,105970.0,0.61027613]
[1762735404429,0.41710343,105980.0,105970.0,0.61027613]
[1762735404818,0.54278343,105980.0,105970.0,0.51588803]
[1762735405023,0.90358343,105980.0,105970.0,0.51588803]
[1762735405821,0.90558343,105980.0,105970.0,0.51588803]
[1762735406422,0.44526343,105980.0,105970.0,0.51588803]
[1762735406623,0.69736,105980.0,105970.0,0.61027613]
[1762735406829,0.69736,105980.0,105970.0,0.51588803]
[1762735406830,0.77982343,105980.0,105970.0,0.51588803]
[1762735407320,0.79950878,105980.0,105970.0,0.27187]
[1762735407514,0.79950885,105980.0,105960.0,0.63377208]
[1762735407721,0.44326343,105970.0,105960.0,0.00014208]
[1762735407921,1.94326343,105970.0,105960.0,0.00014208]
[1762735408130,2.04541526,105970.0,105960.0,0.00014208]
[1762735408330,2.04542663,105970.0,105960.0,0.00014208]
[1762735408632,1.9629632,105970.0,105960.0,0.00014208]
[1762735409221,1.88049977,105970.0,105960.0,0.14074208]
[1762735409426,1.9659632,105970.0,105960.0,0.00014208]
[1762735409627,1.9659632,105970.0,105960.0,0.61932208]
[1762735409930,2.3004832,105970.0,105960.0,0.71591711]
[1762735411427,2.2974832,105970.0,105960.0,0.71591711]
[1762735411628,2.3004832,105970.0,105960.0,0.71591711]
[1762735412135,2.3004832,105970.0,105960.0,0.62152011]
[1762735412431,2.3004832,105970.0,105960.0,0.61932208]
[1762735413032,2.3004832,105970.0,105960.0,0.62152011]
[1762735414331,2.3004832,105970.0,105960.0,0.71591711]
[1762735415327,2.3003232,105970.0,105960.0,0.71591711]
[1762735415938,2.2973232,105970.0,105960.0,0.71591711]
[1762735416232,2.21785977,105970.0,105960.0,0.71591711]
[1762735416743,0.33724,105970.0,105960.0,1.07671711]
[1762735416927,0.75063727,105990.0,105980.0,0.61918]
[1762735417124,0.43285291,105990.0,105980.0,0.71575723]
[1762735417328,0.00014208,105990.0,105980.0,1.07655723]
[1762735417532,3.84e-06,105990.0,105980.0,1.17092801]
[1762735418131,0.93546343,106010.0,106000.0,0.60698]
[1762735418326,1.28955977,106010.0,106000.0,0.60917803]
[1762735418522,0.71939634,106010.0,106000.0,0.70353943]
[1762735418729,0.33882,106010.0,106000.0,0.96997803]
[1762735418938,0.33882,106010.0,106000.0,1.07505125]
[1762735419541,0.34182,106010.0,106000.0,1.07505125]
[1762735420032,0.34178,106010.0,106000.0,1.07505125]
[1762735420234,0.3608,106030.0,106020.0,0.61918]
[1762735420431,1.18282,106030.0,106020.0,0.62137803]
[1762735421036,1.30346537,106030.0,106020.0,0.62137803]
[1762735421224,0.69512,106030.0,106020.0,0.71572173]
[1762735421430,0.81576537,106030.0,106020.0,0.71572173]
[1762735421726,0.48144537,106030.0,106020.0,0.71572173]
[1762735421932,0.81584537,106030.0,106020.0,0.71572173]
[1762735422733,0.81584537,106030.0,106020.0,0.62137803]
[1762735423034,0.45504537,106030.0,106020.0,0.62137803]
[1762735423431,1.07088537,106030.0,106020.0,0.62137803]
[1762735423931,0.12064537,106030.0,106020.0,0.71572163]
[1762735424129,0.0045,106040.0,106030.0,0.0943347]
[1762735424331,0.33854,106040.0,106030.0,0.57511273]
[1762735424536,0.0045,106040.0,106030.0,1.01036702]
[1762735424734,0.33854,106040.0,106030.0,1.01036702]
[1762735425631,0.3385,106040.0,106030.0,1.1046755]
[1762735426026,0.0045,106040.0,106030.0,1.1046755]
[1762735426226,0.45456537,106050.0,106040.0,0.7135058]
[1762735426435,0.70960537,106050.0,106040.0,0.62137803]
[1762735426632,0.94226537,106050.0,106040.0,0.62137803]
[1762735426941,1.30306537,106050.0,106040.0,0.62137803]
[1762735427130,1.30306537,106050.0,106040.0,0.48077803]
[1762735427329,1.30306537,106050.0,106040.0,0.24986803]
[1762735427529,1.30306537,106050.0,106040.0,0.00219803]
[1762735429131,1.30306537,106050.0,106040.0,0.46915803]
[1762735429737,1.30306537,106050.0,106040.0,0.23872803]
[1762735431841,0.60123,106040.0,106030.0,0.00014208]
[1762735432042,0.82824,106040.0,106030.0,0.46930011]
[1762735432337,0.5687,106040.0,106030.0,0.56363481]
[1762735432544,0.9295,106040.0,106030.0,0.56363481]
[1762735432933,0.5687,106040.0,106030.0,0.56363481]
[1762735434044,0.9295,106040.0,106030.0,0.56363481]
[1762735434345,0.5687,106040.0,106030.0,0.56363481]
[1762735434545,1.29571,106040.0,106030.0,0.46930011]
[1762735435049,1.16192,106040.0,106030.0,0.56363481]
[1762735435348,0.9295,106040.0,106030.0,0.56363481]
[1762735435649,0.5687,106040.0,106030.0,0.56363481]
[1762735437241,0.93997537,106050.0,106040.0,0.6434358]
[1762735437446,1.27361537,106050.0,106040.0,0.64563383]
[1762735437950,1.27361537,106050.0,106040.0,0.55130803]
[1762735438848,1.27361537,106050.0,106040.0,0.42523803]
[1762735439045,0.59458,106040.0,106030.0,0.42318208]
[1762735439348,0.95538,106040.0,106030.0,0.21743011]
[1762735439535,0.95538,106040.0,106030.0,0.51971481]
[1762735439939,0.45853,106040.0,106030.0,0.51971481]
[1762735440342,0.57917537,106040.0,106030.0,0.51971481]
[1762735440548,0.91281537,106040.0,106030.0,0.51971481]
[1762735441144,0.79217,106040.0,106030.0,0.51971481]
[1762735441349,0.79217,106040.0,106030.0,0.42538011]
[1762735441646,0.79217,106040.0,106030.0,0.51971481]
[1762735441844,0.92822,106040.0,106030.0,0.51971481]
[1762735442039,1.28902,106040.0,106030.0,0.42538011]
[1762735442234,0.92552,106040.0,106030.0,0.42538011]
[1762735442439,0.33364,106040.0,106030.0,0.51971481]
[1762735442634,0.91281537,106040.0,106030.0,0.51971481]
[1762735442849,1.04886537,106040.0,106030.0,0.51971481]
[1762735443052,0.91281537,106040.0,106030.0,0.51971481]
[1762735443348,0.68536537,106040.0,106030.0,0.51971481]
[1762735443545,0.56472,106040.0,106030.0,0.51971481]
[1762735443941,0.79217,106040.0,106030.0,0.42538011]
[1762735444446,1.28902,106040.0,106030.0,0.00014208]
[1762735444746,1.28902,106040.0,106030.0,0.42538011]
[1762735446142,1.30863069,106040.0,106030.0,0.42538011]
[1762735446453,1.42927606,106040.0,106030.0,0.42538011]
[1762735446639,1.09563606,106040.0,106030.0,0.51971481]
[1762735446845,1.09563606,106040.0,106030.0,0.88051481]
[1762735446846,0.59878606,106040.0,106030.0,0.88051481]
[1762735447046,0.93238606,106040.0,106030.0,0.51971481]
[1762735447241,0.91277537,106040.0,106030.0,0.51971481]
[1762735447645,0.91277537,106040.0,106030.0,0.88051481]
[1762735448146,0.91277537,106040.0,106030.0,0.51971481]
[1762735448343,0.91277537,106040.0,106030.0,0.42538011]
[1762735448546,1.04882537,106040.0,106030.0,0.51971481]
[1762735449045,0.91277537,106040.0,106030.0,0.51971481]
[1762735449645,1.04882537,106040.0,106030.0,0.42538011]
[1762735450050,1.42929303,106040.0,106030.0,0.42538011]
[1762735450238,1.42929303,106040.0,106030.0,0.00234011]
[1762735453054,1.42929303,106040.0,106030.0,0.00014208]
[1762735453254,0.59458,106020.0,106010.0,0.0943496]
[1762735453456,0.92818,106020.0,106010.0,0.51958763]
[1762735453652,1.04882537,106020.0,106010.0,0.51958763]
[1762735455556,1.04882537,106020.0,106010.0,0.42523803]
[1762735455757,1.40962537,106020.0,106010.0,0.51959053]
[1762735456160,1.28898,106020.0,106010.0,0.59488907]
[1762735456359,1.40962537,106020.0,106010.0,0.59488907]
[1762735458360,1.375657,106020.0,106010.0,0.59488907]
[1762735458560,1.375657,106020.0,106010.0,0.50053657]
[1762735458953,1.39533018,106020.0,106010.0,0.50053657]
[1762735459250,1.39533018,106020.0,106010.0,0.00219803]
[1762735459651,0.45853,106010.0,106000.0,1.0174492]
[1762735459857,0.45853,106010.0,106000.0,1.01964723]
[1762735460061,0.79213,106010.0,106000.0,1.09681703]
[1762735461162,0.56468,106010.0,106000.0,1.09681703]
[1762735461661,0.56464,106010.0,106000.0,1.09681703]
[1762735461863,0.23108,106010.0,106000.0,1.09681703]
[1762735462262,0.57917537,106020.0,106010.0,0.5173926]
[1762735462457,0.81196819,106020.0,106010.0,0.88039063]
[1762735462855,0.94797819,106020.0,106010.0,0.88039063]
[1762735463364,0.23122208,106030.0,106020.0,0.6518738]
[1762735463565,0.56478208,106030.0,106020.0,1.01487183]
[1762735463958,0.33370208,106030.0,106020.0,1.01487183]
[1762735464459,0.353538,106030.0,106020.0,1.01487183]
[1762735464765,0.33370208,106030.0,106020.0,1.01487183]
[1762735469364,0.56478208,106030.0,106020.0,1.06446348]
[1762735469564,0.56478208,106030.0,106020.0,1.01487183]
[1762735469758,0.76330208,106030.0,106020.0,0.92052803]
[1762735469968,0.76330208,106030.0,106020.0,1.16227183]
[1762735470467,0.88323208,106030.0,106020.0,1.06792803]
[1762735470660,0.88323208,106030.0,106020.0,0.78603803]
[1762735471369,1.24403208,106030.0,106020.0,0.42523803]
[1762735472264,1.24403208,106030.0,106020.0,0.00219803]
[1762735472762,0.53739,106010.0,106000.0,1.12894995]
[1762735472962,0.87091,106010.0,106000.0,1.13114798]
[1762735473964,0.87091,106010.0,106000.0,1.08155633]
[1762735474264,0.87091,106010.0,106000.0,0.95315633]
[1762735474458,0.87091,106010.0,106000.0,0.49800173]
[1762735474662,0.87091,106010.0,106000.0,0.59236333]
[1762735474862,0.87091,106010.0,106000.0,0.49800173]
[1762735474863,1.23171,106010.0,106000.0,0.49800173]
[1762735475063,1.23171,106010.0,106000.0,0.07950991]
[1762735475263,1.83171,106010.0,106000.0,0.00014208]
[1762735475574,0.89819,106010.0,106000.0,0.21074011]
[1762735475761,1.23171,106010.0,106000.0,0.40998011]
[1762735476063,1.23171,106010.0,106000.0,0.50434171]
[1762735476270,0.89819,106010.0,106000.0,0.50434171]
[1762735476467,0.87087,106010.0,106000.0,0.86514171]
[1762735476770,0.87087,106010.0,106000.0,0.50434171]
[1762735477070,1.23167,106010.0,106000.0,0.50434171]
[1762735478967,0.75094,106010.0,106000.0,0.50434171]
[1762735479770,0.75094,106010.0,106000.0,0.58045171]
[1762735480071,0.41746,106020.0,106010.0,0.6253527]
[1762735480274,0.87091,106020.0,106010.0,0.62755073]
[1762735480668,0.87091,106020.0,106010.0,0.40997803]
[1762735480669,1.31397533,106020.0,106010.0,0.40997803]
[1762735480966,1.31397533,106020.0,106010.0,0.21073803]
[1762735481360,1.31397533,106020.0,106010.0,0.40997803]
[1762735481563,0.06211,106010.0,106000.0,2.08e-06]
[1762735481772,0.92263533,106010.0,106000.0,0.00220011]
[1762735482267,0.50517533,106010.0,106000.0,2.08e-06]
[1762735482470,0.52500364,106010.0,106000.0,2.08e-06]
[1762735483570,0.52500364,106010.0,106000.0,0.00220011]
[1762735483771,0.92263533,106010.0,106000.0,0.50434171]
[1762735484070,0.92263533,106010.0,106000.0,0.62756171]
[1762735484273,0.77826,106010.0,106000.0,0.62756171]
[1762735484572,1.11174,106010.0,106000.0,0.62756171]
[1762735484967,0.75094,106010.0,106000.0,0.62756171]
[1762735485758,0.98059741,106030.0,106000.0,0.67491268]
[1762735485959,0.41746,106010.0,106000.0,0.72189268]
[1762735486163,0.41746,106010.0,106000.0,0.62755751]
[1762735486569,0.49972533,106010.0,106000.0,0.40998011]
[1762735486767,0.49972533,106010.0,106000.0,0.50434151]
[1762735486963,0.41746,106010.0,106000.0,0.62756151]
[1762735487170,0.77654533,106020.0,106010.0,0.5021325]
[1762735487171,1.11174,106020.0,106010.0,0.5021325]
[1762735487474,0.75094,106020.0,106010.0,0.86513053]
[1762735487674,0.75094,106020.0,106010.0,0.50433053]
[1762735488175,0.75094,106020.0,106010.0,0.86513053]
[1762735488570,0.41746,106020.0,106010.0,0.86513053]
[1762735488774,0.33348,106020.0,106010.0,0.86513053]
[1762735489368,0.36062208,106030.0,106020.0,0.5699936]
[1762735489569,0.69410208,106030.0,106020.0,0.57219163]
[1762735491176,0.77636741,106030.0,106020.0,0.57219163]
[1762735491379,0.77636741,106030.0,106020.0,0.48053803]
[1762735491562,0.77636741,106030.0,106020.0,0.00219803]
[1762735491563,1.13716741,106030.0,106020.0,0.00219803]
[1762735492573,0.36048,106010.0,106000.0,0.73254878]
[1762735492775,0.69392,106010.0,106000.0,0.73474681]
[1762735492974,0.69392,106010.0,106000.0,0.82906418]
[1762735493174,0.69392,106010.0,106000.0,0.64039011]
[1762735493374,0.33344,106010.0,106000.0,1.18988668]
[1762735493769,0.72142208,106030.0,106020.0,0.4619136]
[1762735493970,1.05486208,106030.0,106020.0,0.57488163]
[1762735494167,1.13712741,106030.0,106020.0,0.48053803]
[1762735494374,1.13712741,106030.0,106020.0,0.36976803]
[1762735494575,1.13712741,106030.0,106020.0,0.46411163]
[1762735494576,0.77632741,106030.0,106020.0,0.46411163]
[1762735494784,0.36062208,106030.0,106020.0,0.57488163]
[1762735494976,0.69406208,106030.0,106020.0,0.93568163]
[1762735495181,0.69406208,106030.0,106020.0,0.57488163]
[1762735495382,0.69402208,106030.0,106020.0,0.93568163]
[1762735495578,0.36062208,106030.0,106020.0,0.93568163]
[1762735495781,0.33354208,106030.0,106020.0,0.93568163]
[1762735496482,0.33354208,106030.0,106020.0,1.029999]
[1762735497172,0.00014208,106030.0,106020.0,1.029999]
[1762735497572,0.83707,106050.0,106040.0,0.5591558]
[1762735497772,0.91933533,106050.0,106040.0,0.56135383]
[1762735497982,0.35634,106050.0,106040.0,0.56135383]
[1762735498173,0.68974,106050.0,106040.0,0.56135383]
[1762735499175,0.35634,106050.0,106040.0,0.56135383]
[1762735499380,0.6897,106050.0,106040.0,0.56135383]
[1762735499584,0.90853533,106060.0,106050.0,0.4538869]
[1762735499783,0.90853533,106060.0,106050.0,0.45608493]
[1762735499971,0.73717992,106060.0,106050.0,0.45608493]
[1762735500284,1.13290533,106060.0,106050.0,0.45608493]
[1762735500480,1.05064,106060.0,106050.0,0.45608493]
[1762735500882,0.00014,106060.0,106050.0,0.81688493]
[1762735501085,0.00014,106060.0,106050.0,1.05260493]
[1762735501284,0.48073,106080.0,106050.0,1.05260493]
[1762735501285,0.00913805,106090.0,106080.0,0.4671]
[1762735501583,0.00913805,106090.0,106070.0,0.3608]
[1762735501584,0.18215,106080.0,106070.0,0.3608]
[1762735501783,0.82613,106080.0,106070.0,0.18731803]
[1762735501974,0.82613,106080.0,106070.0,0.36176803]
[1762735502173,1.16289,106080.0,106070.0,0.35957]
[1762735502381,0.35634,106070.0,106060.0,0.3597114]
[1762735502581,0.71714,106070.0,106060.0,0.00233943]
[1762735502890,0.71714,106070.0,106030.0,0.4551294]
[1762735502891,0.35634,106040.0,106030.0,0.35957]
[1762735503092,0.69322,106040.0,106030.0,0.36176803]
[1762735503282,0.33688,106040.0,106030.0,0.36176803]
[1762735503477,0.80221,106040.0,106030.0,0.36176803]
[1762735503790,1.24527533,106040.0,106030.0,0.36176803]
[1762735504185,0.80221,106040.0,106030.0,0.36176803]
[1762735504385,1.16301,106040.0,106030.0,0.36176803]
[1762735504790,0.35634,106030.0,106020.0,0.00021736]
[1762735505089,1.16020533,106030.0,106020.0,0.00241539]
[1762735505289,0.79940533,106030.0,106020.0,0.00241539]
[1762735505489,0.35634,106030.0,106020.0,0.00241539]
[1762735505786,0.79940533,106030.0,106020.0,0.36198539]
[1762735505986,0.79940533,106030.0,106020.0,0.00241539]
[1762735506685,0.79940533,106030.0,106020.0,0.36198539]
[1762735507288,0.79940533,106030.0,106020.0,0.00241539]
[1762735507487,0.79940533,106030.0,106020.0,0.00021736]
[1762735507488,0.8200257,106030.0,106020.0,0.00021736]
[1762735507792,0.8200257,106030.0,106020.0,0.00241539]
[1762735508086,0.43860533,106030.0,106020.0,0.09675899]
[1762735508280,0.71714,106030.0,106020.0,0.56385899]
[1762735508488,0.35634,106040.0,106030.0,0.4539047]
[1762735508679,0.43874445,106050.0,106040.0,0.4538958]
[1762735508988,0.77594445,106050.0,106040.0,0.45609383]
[1762735509190,1.13674445,106050.0,106040.0,0.45609383]
[1762735509386,1.13674445,106050.0,106040.0,0.00219803]
[1762735509592,1.05439912,106050.0,106040.0,0.45609383]
[1762735509790,1.05439912,106050.0,106040.0,0.56362383]
[1762735509791,0.00013912,106050.0,106040.0,0.56362383]
[1762735509986,0.54295,106080.0,106070.0,0.4538691]
[1762735510187,1.07495403,106080.0,106070.0,0.36176803]
[1762735510391,1.07495403,106080.0,106070.0,0.45606713]
[1762735510591,0.71415403,106080.0,106070.0,0.45606713]
[1762735510894,0.3372,106080.0,106070.0,0.91114005]
[1762735511188,0.52876805,106090.0,106080.0,0.4671]
[1762735511495,1.14602338,106090.0,106080.0,0.00219803]
[1762735511681,0.46533,106080.0,106070.0,0.001]
[1762735511884,0.90839533,106080.0,106070.0,0.00419803]
[1762735512393,1.24603533,106080.0,106070.0,0.00419803]
[1762735512590,1.24603533,106080.0,106070.0,0.36276803]
[1762735512889,1.24603533,106080.0,106070.0,0.18831803]
[1762735513089,1.24603533,106080.0,106070.0,0.00319803]
[1762735513295,1.24603533,106080.0,106070.0,0.00219803]
[1762735513486,1.24603533,106080.0,106070.0,0.00319803]
[1762735513795,1.16377,106080.0,106070.0,0.00319803]
[1762735513994,1.26662772,106080.0,106070.0,0.00419803]
[1762735514199,1.26662965,106080.0,106070.0,0.00419803]
[1762735514693,1.34889498,106080.0,106070.0,0.002]
[1762735514997,0.35634,106070.0,106060.0,0.0001414]
[1762735515200,0.81999965,106070.0,106060.0,0.0001414]
[1762735515493,0.46533,106040.0,106030.0,0.35957]
[1762735515796,1.24647533,106040.0,106030.0,0.00219803]
[1762735516189,0.35634,106030.0,106020.0,7.596e-05]
[1762735516395,2.29940533,106030.0,106020.0,0.00227399]
[1762735516801,0.46533,106020.0,106010.0,0.00485771]
[1762735516988,1.24679533,106020.0,106010.0,0.00705574]
[1762735517695,1.24679533,106020.0,106010.0,0.00485771]
[1762735517894,1.24687129,106020.0,106010.0,0.00705574]
[1762735518694,1.24687129,106020.0,106010.0,0.10140824]
[1762735519000,1.24691129,106020.0,106010.0,0.00705574]
[1762735519202,1.24691129,106020.0,106010.0,0.00485771]
[1762735519600,0.35634,105990.0,105980.0,0.9271001]
[1762735519898,0.69514,105990.0,105980.0,0.82176813]
[1762735520093,0.77740533,105990.0,105980.0,0.46096813]
[1762735520293,0.69514,105990.0,105980.0,0.93957338]
[1762735520497,0.69514,105990.0,105980.0,0.92929813]
[1762735520698,0.69514,105990.0,105980.0,0.58149813]
[1762735520905,0.69514,105990.0,105980.0,0.95329813]
[1762735521197,0.69514,105990.0,105980.0,0.75139663]
[1762735521398,0.77740533,105990.0,105980.0,0.39182663]
[1762735521706,0.77740533,105990.0,105980.0,0.67132583]
[1762735521901,0.77740533,105990.0,105980.0,0.75139663]
[1762735522097,0.69514,105990.0,105980.0,0.94030583]
[1762735522398,0.69514,105990.0,105980.0,0.94230583]
[1762735522802,0.69514,105990.0,105980.0,0.93130583]
[1762735523106,0.69514,105990.0,105980.0,0.93430583]
[1762735523301,0.69514,105990.0,105980.0,0.73239663]
[1762735523506,0.77740533,105990.0,105980.0,0.01202663]
[1762735524002,0.69514,105990.0,105980.0,0.82677583]
[1762735524202,0.4654714,106000.0,105990.0,0.35957]
[1762735524393,0.4654714,106000.0,105990.0,0.45613833]
[1762735524394,0.6955214,106000.0,105990.0,0.45613833]
[1762735524998,0.6954414,106000.0,105990.0,0.45613833]
[1762735525208,0.6954814,106000.0,105990.0,0.81693833]
[1762735525504,0.0001414,106000.0,105990.0,0.81693833]
[1762735525800,0.3390214,106000.0,105990.0,0.81693833]
[1762735526193,0.0001414,106000.0,105990.0,0.81693833]
[1762735526401,0.3391014,106000.0,105990.0,0.81693833]
[1762735526806,0.3391014,106000.0,105990.0,0.81893833]
[1762735527106,0.46986596,106020.0,106010.0,0.4314725]
[1762735527107,0.33935596,106020.0,106010.0,0.4314725]
[1762735527309,0.67823596,106020.0,106010.0,0.43367053]
[1762735527611,0.41120596,106020.0,106010.0,0.00219803]
[1762735527806,0.67855596,106020.0,106010.0,0.43367053]
[1762735528019,7.596e-05,106020.0,106010.0,0.79447053]
[1762735528401,0.33943596,106020.0,106010.0,0.79447053]
[1762735529007,7.596e-05,106020.0,106010.0,1.1245968]
[1762735529409,7.596e-05,106020.0,106010.0,0.8887968]
[1762735529805,7.596e-05,106020.0,106010.0,1.2280368]
[1762735530008,7.596e-05,106020.0,106010.0,1.4638368]
[1762735530404,0.33931596,106020.0,106010.0,0.5279968]
[1762735530612,0.51704596,106020.0,106010.0,0.43367053]
[1762735530908,7.596e-05,106020.0,106010.0,0.79447053]
[1762735531106,0.33919596,106020.0,106010.0,1.1245968]
[1762735531304,0.33919596,106020.0,106010.0,0.8887968]
[1762735531506,0.33919596,106020.0,106010.0,1.1245968]
[1762735531913,0.33919596,106020.0,106010.0,0.8887968]
[1762735532818,0.67851596,106020.0,106010.0,0.8887968]
[1762735533708,0.51696596,106020.0,106010.0,0.8887968]
[1762735534012,0.67851596,106020.0,106010.0,0.8887968]
[1762735534204,0.67851596,106020.0,106010.0,0.79447053]
[1762735535117,0.77349596,106020.0,106010.0,0.70011803]
[1762735535409,0.77349596,106020.0,106010.0,0.33931803]
[1762735535616,0.67851596,106020.0,106010.0,0.33931803]
[1762735536509,0.33928,106010.0,106000.0,0.0001414]
[1762735536709,0.78234533,106010.0,106000.0,0.0001414]
[1762735537219,0.78234533,106010.0,106000.0,0.00233943]
[1762735537409,0.67832,106010.0,106000.0,0.18480943]
[1762735537718,1.12138533,106010.0,106000.0,0.00233943]
[1762735537909,1.12138533,106010.0,106000.0,0.0001414]
[1762735539217,1.12138533,106010.0,106000.0,0.0945028]
[1762735539517,1.12138533,106010.0,106000.0,0.0001414]
[1762735539711,1.12138533,106010.0,106000.0,0.09670083]
[1762735541016,1.15979172,106010.0,106000.0,0.09670083]
[1762735542113,1.16979172,106010.0,106000.0,0.0001414]
[1762735542418,1.16979172,106010.0,106000.0,0.09670083]
[1762735542612,1.16979172,106010.0,106000.0,0.00233943]
[1762735542811,0.33928,105990.0,105980.0,0.0992073]
[1762735543016,1.15983172,105990.0,105980.0,0.10140533]
[1762735543211,0.33928,105990.0,105980.0,0.89221533]
[1762735543412,0.71008,106010.0,106000.0,0.2768314]
[1762735543615,1.07019925,106010.0,106000.0,0.27902943]
[1762735544816,1.93426,106000.0,105990.0,0.3609414]
[1762735545012,2.43874607,106000.0,105990.0,0.0001414]
[1762735546015,2.43874607,106000.0,105990.0,0.0031414]
[1762735547022,2.43874607,106000.0,105990.0,0.0051414]
[1762735547322,1.52301435,106000.0,105990.0,0.79816436]
[1762735547626,1.84143803,106000.0,105990.0,0.89050843]
[1762735547818,1.84143803,106000.0,105990.0,0.88750843]
[1762735548015,1.84543803,106000.0,105990.0,0.79316436]
[1762735548416,1.84143803,106000.0,105990.0,0.79316436]
[1762735548623,1.84143803,106000.0,105990.0,0.79616436]
[1762735549016,1.84143803,106000.0,105990.0,0.79316436]
[1762735549216,1.84143803,106000.0,105990.0,0.79816436]
[1762735549516,1.84147803,106000.0,105990.0,0.79816436]
[1762735550016,1.84147803,106000.0,105990.0,0.80416436]
[1762735550222,1.50219803,106000.0,105990.0,0.80416436]
[1762735550421,1.84119803,106000.0,105990.0,0.80416436]
[1762735550916,2.27658803,106000.0,105990.0,0.01187406]
[1762735551417,2.27658803,106000.0,105990.0,0.15663406]
[1762735552124,2.27658803,106000.0,105990.0,0.15163406]
[1762735552319,2.27858803,106000.0,105990.0,0.00687406]
[1762735552717,2.39925975,106000.0,105990.0,0.10124436]
[1762735552916,2.03845975,106000.0,105990.0,0.10124436]
[1762735553116,2.04445975,106000.0,105990.0,0.24000436]
[1762735553316,2.40525975,106000.0,105990.0,0.00087406]
[1762735554016,2.40525975,106000.0,105990.0,0.0001414]
[1762735554326,2.42613552,106000.0,105990.0,0.0001414]
[1762735554917,2.42613552,106000.0,105990.0,1.4e-06]
[1762735555121,3.02613552,106000.0,105990.0,1.4e-06]
[1762735555321,1.18713552,106000.0,105990.0,0.00073406]
[1762735555622,1.1106638,106000.0,105990.0,0.09510436]
[1762735555828,1.1106638,106000.0,105990.0,0.00073406]
[1762735556224,1.1106638,106000.0,105990.0,0.09510436]
[1762735557321,0.7498638,106000.0,105990.0,0.38965436]
[1762735559019,0.7498638,106000.0,105990.0,0.29528406]
[1762735559226,1.1106638,106000.0,105990.0,0.14549406]
[1762735559823,1.1106638,106000.0,105990.0,0.23986436]
[1762735560428,0.02887577,106000.0,105990.0,0.75045436]
[1762735560732,0.008,106000.0,105990.0,0.84479843]
[1762735561120,0.008,106000.0,105990.0,1.44479843]
[1762735561422,0.22728,106010.0,106000.0,0.4824514]
[1762735561618,0.22728,106010.0,106000.0,0.84398406]
[1762735561930,0.22947803,106010.0,106000.0,0.93832813]
[1762735562227,0.22947803,106010.0,106000.0,1.01235831]
[1762735562623,0.00219803,106010.0,106000.0,1.01235831]
[1762735562829,0.33836,106030.0,106020.0,0.4824274]
[1762735563025,0.33836,106030.0,106020.0,0.84542543]
[1762735563928,0.33836,106030.0,106020.0,0.9397428]
[1762735564223,0.49379,106030.0,106020.0,0.9397428]
[1762735564631,0.33836,106030.0,106020.0,0.9397428]
[1762735564816,0.33836,106030.0,106020.0,1.3005428]
[1762735565018,0.0001414,106040.0,106030.0,0.3960947]
[1762735565223,0.30329,106070.0,106060.0,0.15197]
[1762735565422,0.66037467,106070.0,106060.0,0.00219803]
[1762735565622,0.78104639,106070.0,106060.0,0.00219803]
[1762735566227,0.78104639,106070.0,106050.0,0.0001414]
[1762735566228,1.85182,106060.0,106050.0,0.0001414]
[1762735566422,2.35413639,106060.0,106050.0,1.4e-06]
[1762735567323,2.35813639,106060.0,106050.0,1.4e-06]
[1762735571233,2.95813639,106060.0,106050.0,1.4e-06]
[1762735573139,0.29879,106030.0,106020.0,0.0943413]
[1762735573328,1.12029975,106030.0,106020.0,0.09507396]
[1762735573731,0.30098803,106030.0,106020.0,0.48316396]
[1762735573935,0.63882803,106030.0,106020.0,0.48316396]
[1762735574335,0.37285,106020.0,106010.0,0.0001414]
[1762735574526,0.85651975,106020.0,106010.0,0.0001414]
[1762735574726,0.85651975,106020.0,106010.0,1.4e-06]
[1762735575148,0.87731118,106020.0,106010.0,1.4e-06]
[1762735576135,0.88031118,106020.0,106010.0,1.4e-06]
[1762735577230,0.75963946,106020.0,106010.0,1.4e-06]
[1762735577437,0.88031118,106020.0,106010.0,1.4e-06]
[1762735579640,0.29879,105990.0,105980.0,0.00866173]
[1762735579835,1.48129975,105990.0,105980.0,0.00866173]
[1762735580734,1.48129975,105990.0,105980.0,0.02166162]
[1762735580934,1.48129975,105990.0,105980.0,0.04066162]
[1762735581137,1.36062803,105990.0,105980.0,0.04066162]
[1762735581338,1.14325975,105990.0,105980.0,0.13504092]
[1762735581640,0.00219803,105990.0,105980.0,0.52313092]
[1762735581834,0.34303803,105990.0,105980.0,1.10413092]
[1762735582143,0.34343803,105990.0,105980.0,1.10413092]
[1762735582651,0.34343803,105990.0,105980.0,1.09113092]
[1762735582842,0.34643803,105990.0,105980.0,1.45193092]
[1762735583239,0.34343803,105990.0,105980.0,1.45193092]
[1762735583439,0.34443803,105990.0,105980.0,1.45193092]
[1762735584441,0.34443803,105990.0,105980.0,0.99675162]
[1762735584638,0.004,105990.0,105980.0,1.45193092]
[1762735584837,0.34419803,105990.0,105980.0,1.45193092]
[1762735585043,0.00619803,105990.0,105980.0,1.45193092]
[1762735585248,0.34419803,105990.0,105980.0,1.45193092]
[1762735585936,0.34419803,105990.0,105980.0,1.35755162]
[1762735586337,0.34415803,105990.0,105980.0,1.45193092]